bitfinex-derivatives/quotes_ETHF0:USTF0_20240924
["timestamp","ask_amount","ask_price","bid_price","bid_amount"]
[1727196138038,0.38131,2622.7,2622.6,1.159]
[1727196138241,2.03184798,2622.7,2622.6,1.159]
[1727196139047,2.03184798,2622.7,2622.6,3.839]
[1727196139442,1.65053798,2622.7,2622.6,3.839]
[1727196139839,1.65053798,2622.7,2622.6,4.22032]
[1727196140040,0.88419,2622.8,2622.6,4.8851]
[1727196140338,1.63254976,2622.7,2622.6,4.8851]
[1727196140535,0.8842,2622.8,2622.6,4.8851]
[1727196141041,0.5029,2622.8,2622.6,5.26641]
[1727196141250,0.88419,2622.8,2622.6,4.8851]
[1727196142140,0.3813,2622.7,2622.6,4.8851]
[1727196142340,0.3813,2622.7,2622.6,3.839]
[1727196142546,2.01382704,2622.7,2622.6,3.839]
[1727196143344,0.3813,2622.7,2622.6,3.839]
[1727196143548,0.5029,2622.8,2622.6,3.839]
[1727196143853,0.5124,2622.9,2622.6,8.28233224]
[1727196144150,0.89367,2622.9,2622.8,2.68]
[1727196144443,2.52602362,2622.9,2622.8,2.68]
[1727196147351,2.52604759,2622.9,2622.8,2.68]
[1727196148040,4.9973912,2622.9,2622.8,2.68]
[1727196150141,3.36501361,2622.9,2622.8,2.68]
[1727196150340,4.99782896,2622.9,2622.8,2.68]
[1727196151641,0.3813,2622.7,2622.6,3.838]
[1727196151843,0.95333,2622.5,2622.2,3.2078]
[1727196152048,0.95333,2622.5,2622.1,2.68]
[1727196152049,0.38137,2622.3,2622.1,2.68]
[1727196152256,1.63361356,2622.2,2622.1,3.838]
[1727196152450,1.63365839,2622.2,2622.1,3.838]
[1727196152662,1.63366554,2622.2,2622.1,3.838]
[1727196152854,0.38137,2622.3,2622.1,3.838]
[1727196153052,3.90006569,2622.4,2622.1,4.21938]
[1727196153250,3.90006569,2622.4,2622.3,2.68]
[1727196153656,5.53371557,2622.4,2622.3,2.68]
[1727196154469,3.03789988,2622.4,2622.3,2.68]
[1727196155973,3.03789988,2622.4,2620.9,3.58936]
[1727196155974,0.38151,2621.3,2620.9,3.58936]
[1727196156273,0.38155,2621.0,2620.9,3.2078]
[1727196156466,2.01519988,2621.0,2620.9,3.2078]
[1727196156771,0.38156,2620.9,2620.8,2.68]
[1727196156972,1.63376087,2620.9,2620.8,2.68]
[1727196157366,2.49431176,2620.9,2620.8,2.68]
[1727196157561,4.12807263,2620.9,2620.8,2.68]
[1727196157773,4.50963263,2620.9,2620.8,2.68]
[1727196157974,4.31897952,2620.9,2620.8,2.68]
[1727196158167,1.82466776,2620.9,2620.8,2.68]
[1727196158366,1.63376087,2620.9,2620.8,2.68]
[1727196158868,1.82466776,2620.9,2620.8,2.68]
[1727196160173,0.19090689,2621.0,2620.8,3.06158]
[1727196160372,0.19090689,2620.9,2620.8,0.38158]
[1727196160574,0.19090689,2620.9,2620.8,8.27703725]
[1727196160979,0.19090689,2620.9,2620.8,7.89545725]
[1727196161278,0.19090795,2620.9,2620.8,10.57545725]
[1727196161577,0.19090795,2620.9,2620.8,10.95703725]
[1727196161765,0.19090795,2620.9,2620.8,3.06158]
[1727196161966,0.19090795,2620.9,2620.8,6.87678]
[1727196162166,0.19090795,2620.9,2620.8,11.19536717]
[1727196162378,0.38154,2621.1,2620.8,11.19536717]
[1727196162568,1.68428269,2621.0,2620.8,4.31858717]
[1727196162777,1.49337981,2621.0,2620.9,2.68]
[1727196162977,2.06583822,2621.0,2620.9,2.68]
[1727196163167,2.55233822,2621.0,2620.9,2.68]
[1727196163676,0.38158,2620.8,2620.7,5.8878]
[1727196163878,1.87484246,2620.8,2620.7,5.8878]
[1727196164071,2.06575087,2620.8,2620.7,5.8878]
[1727196164274,2.06576692,2620.8,2620.7,5.8878]
[1727196164476,1.87484246,2620.8,2620.7,5.8878]
[1727196164883,1.49326246,2620.8,2620.7,5.8878]
[1727196165079,1.87484246,2620.8,2620.7,5.8878]
[1727196165275,1.87483246,2620.9,2620.7,5.8878]
[1727196165982,0.38158,2620.8,2620.7,5.8878]
[1727196166588,0.38158,2620.8,2620.7,3.2078]
[1727196167485,0.38158,2620.8,2620.5,3.839]
[1727196167685,1.37609307,2620.7,2620.5,3.839]
[1727196168085,0.99450307,2620.7,2620.5,4.22062]
[1727196168586,0.99450307,2620.7,2620.5,3.839]
[1727196169384,0.99450307,2620.7,2620.3,3.2078]
[1727196169385,0.99450307,2620.6,2620.3,7.0178]
[1727196169681,1.86961307,2620.6,2620.3,7.0178]
[1727196170085,1.48800307,2620.6,2620.5,2.68]
[1727196170272,0.99450307,2620.6,2620.5,2.68]
[1727196170473,0.99450307,2620.7,2620.5,3.06162]
[1727196170885,1.37608307,2620.8,2620.5,3.06162]
[1727196171488,1.37608307,2620.8,2620.7,2.68]
[1727196171880,3.2078,2620.9,2620.7,2.68]
[1727196171881,0.99450307,2620.9,2620.7,2.68]
[1727196172084,0.99450307,2620.9,2620.8,0.38158]
[1727196173081,0.99450307,2620.9,2620.7,3.58158]
[1727196173689,2.86345307,2621.0,2620.7,3.58158]
[1727196173882,2.86345307,2621.0,2620.7,4.10888]
[1727196174082,0.99450307,2620.9,2620.7,4.10888]
[1727196174285,0.38157,2620.9,2620.7,3.7273]
[1727196174475,0.38157,2620.9,2620.7,4.10889]
[1727196174476,1.37607307,2620.9,2620.7,4.10889]
[1727196174677,0.38158,2620.8,2620.7,3.7273]
[1727196174984,0.38159,2620.7,2620.6,3.2078]
[1727196175189,1.37609307,2620.7,2620.4,1.0585]
[1727196175388,1.37609307,2620.7,2620.3,1.51165]
[1727196175389,0.99450307,2620.7,2620.3,1.51165]
[1727196175684,1.37610307,2620.7,2620.4,0.38163]
[1727196176276,0.38161,2620.6,2620.3,4.19164]
[1727196176488,0.99450307,2620.7,2620.3,3.81]
[1727196176680,0.38161,2620.6,2620.3,4.19164]
[1727196177089,0.38162,2620.5,2620.3,3.81]
[1727196177689,0.38161,2620.6,2620.3,3.06164]
[1727196177882,0.38163,2620.5,2620.3,2.68]
[1727196178286,0.38161,2620.6,2620.3,2.68]
[1727196178484,0.38161,2620.6,2620.4,0.38163]
[1727196179290,0.3816,2620.7,2620.5,0.38162]
[1727196179494,0.3816,2620.7,2620.5,3.06161]
[1727196179804,0.38161,2620.6,2620.5,4.22491824]
[1727196180092,0.38162,2620.5,2620.3,6.26944]
[1727196180487,1.94846307,2620.8,2620.3,6.26944]
[1727196180488,0.38159,2620.8,2620.5,0.38162]
[1727196180680,0.38158,2620.8,2620.5,3.06162]
[1727196180886,0.38158,2620.8,2620.5,3.06161]
[1727196181191,0.38161,2620.6,2620.5,2.68]
[1727196181397,0.38161,2620.6,2620.3,3.58945]
[1727196181587,1.94847307,2620.8,2620.4,0.38164]
[1727196181588,0.5178,2620.5,2620.4,0.38164]
[1727196181789,0.5178,2620.5,2620.3,3.58944]
[1727196182787,3.816,2620.4,2619.7,3.2078]
[1727196182989,3.816,2620.4,2619.6,3.2078]
[1727196182990,0.38173,2619.8,2619.6,3.2078]
[1727196183191,2.68,2620.1,2619.6,3.2078]
[1727196183486,2.68,2620.1,2619.5,1.0465]
[1727196183487,4.05622307,2619.9,2619.5,1.0465]
[1727196183696,0.38172,2619.8,2619.5,0.5409]
[1727196183897,0.38174,2619.7,2619.4,1.13]
[1727196184086,0.38174,2619.7,2619.2,4.0952]
[1727196184285,1.52460307,2619.8,2619.2,4.8434]
[1727196184590,1.52460307,2619.8,2619.3,4.16999722]
[1727196184591,0.38174,2619.7,2619.3,4.16999722]
[1727196184892,0.38175,2619.7,2619.3,4.16999722]
[1727196185092,0.5301,2619.8,2619.3,4.16999722]
[1727196185496,0.38174,2619.7,2619.3,4.16999722]
[1727196185998,0.38175,2619.6,2619.2,4.8434]
[1727196186198,2.68,2619.7,2619.2,4.3378]
[1727196186489,2.68,2619.7,2619.2,3.2078]
[1727196186490,6.26955,2619.7,2619.2,3.2078]
[1727196186697,3.58955,2619.7,2619.2,3.58961]
[1727196187000,0.91183,2619.8,2619.2,3.58961]
[1727196187191,0.38175,2619.7,2619.2,3.2078]
[1727196187896,0.38175,2619.6,2619.2,3.2078]
[1727196188285,0.38175,2619.6,2619.2,3.58961]
[1727196188588,0.38175,2619.6,2619.2,3.2078]
[1727196188998,3.7379,2619.8,2619.2,3.2078]
[1727196189600,0.38176,2619.6,2619.2,3.2078]
[1727196189799,0.38178,2619.4,2619.2,3.2078]
[1727196189989,0.5332,2619.3,2619.2,3.2078]
[1727196191396,0.5332,2619.3,2619.2,3.58961]
[1727196192302,0.38175,2619.7,2619.4,0.38178]
[1727196192501,0.38175,2619.6,2619.4,2.68]
[1727196193108,4.73240307,2619.8,2619.4,3.06178]
[1727196193109,0.38174,2619.7,2619.4,3.06178]
[1727196193398,4.73240307,2619.8,2619.4,2.68]
[1727196193593,0.5301,2619.8,2619.6,2.68]
[1727196193793,0.91182,2619.8,2619.6,2.68]
[1727196193989,0.5301,2619.8,2619.6,3.06175]
[1727196194197,0.5301,2619.8,2619.6,2.68]
[1727196194399,0.91182,2619.8,2619.6,2.68]
[1727196194707,0.38175,2619.7,2619.4,2.68]
[1727196194896,0.38175,2619.7,2619.4,3.06178]
[1727196195097,0.5301,2619.8,2619.4,2.68]
[1727196195303,0.5301,2619.8,2619.3,0.5023]
[1727196195304,0.5301,2619.8,2619.6,2.68]
[1727196195600,0.5301,2619.8,2619.6,3.06174]
[1727196195905,0.99450307,2620.1,2619.7,4.19914351]
[1727196196202,1.49326246,2620.3,2619.8,7.5382]
[1727196196203,2.03800307,2620.3,2619.8,7.5382]
[1727196196402,0.38166,2620.2,2619.9,0.3817]
[1727196196601,1.37616307,2620.2,2619.9,4.70963447]
[1727196196798,0.38168,2620.2,2619.9,4.70963447]
[1727196196997,1.37618307,2620.2,2619.9,4.70963447]
[1727196197406,1.37617307,2620.2,2619.9,4.70963447]
[1727196198106,0.99450307,2620.2,2620.1,3.06168]
[1727196198301,3.8168,2620.1,2619.9,4.32793447]
[1727196198506,0.95428,2619.9,2619.4,3.2078]
[1727196198803,0.38178,2619.4,2619.1,4.19182]
[1727196199198,1.48535796,2619.4,2619.2,0.38181]
[1727196199792,0.99425796,2619.5,2619.1,3.81]
[1727196199999,0.99425796,2619.5,2619.4,0.38178]
[1727196200396,0.99425796,2619.5,2619.4,0.89848]
[1727196200594,0.38175,2619.6,2619.4,0.89848]
[1727196200796,0.38175,2619.6,2619.4,0.5167]
[1727196201002,0.38175,2619.6,2619.2,1.622]
[1727196201003,0.38177,2619.5,2619.2,1.5118]
[1727196201214,0.99519271,2619.3,2619.2,1.5118]
[1727196201411,0.99519271,2619.3,2619.2,4.3378]
[1727196201605,0.38179,2619.4,2619.2,9.53870867]
[1727196201799,1.49138695,2619.5,2619.2,5.72110867]
[1727196202008,1.49138695,2619.5,2619.2,1.51181]
[1727196202009,1.87316695,2619.5,2619.2,1.51181]
[1727196202196,0.99587673,2619.3,2619.2,1.5118]
[1727196202711,0.99587673,2619.4,2619.3,0.3818]
[1727196202904,0.99587673,2619.4,2619.3,3.0618]
[1727196203704,0.99587673,2619.5,2619.4,0.38178]
[1727196203907,0.99587673,2619.5,2619.4,4.19938]
[1727196204611,0.99587673,2619.6,2619.5,0.38177]
[1727196204807,0.99587673,2619.6,2619.5,4.10587]
[1727196205205,1.49138695,2619.8,2619.7,0.38174]
[1727196205706,2.06410103,2619.8,2619.7,0.38174]
[1727196205902,1.68238103,2619.8,2619.7,0.38174]
[1727196206104,1.68238103,2619.8,2619.7,4.19854]
[1727196206309,1.49138695,2619.8,2619.7,0.38174]
[1727196206608,1.68237451,2619.8,2619.7,0.38174]
[1727196206801,1.49138695,2619.8,2619.7,4.19854]
[1727196207003,1.49138695,2619.8,2619.7,0.38174]
[1727196207213,1.68237627,2619.8,2619.7,0.38174]
[1727196208414,1.68237627,2619.8,2619.7,4.19854]
[1727196208603,1.49138695,2619.9,2619.8,0.38172]
[1727196208805,1.68237161,2619.9,2619.8,0.38172]
[1727196210010,1.68237048,2619.9,2619.8,0.38172]
[1727196210211,1.49138695,2619.9,2619.8,0.38172]
[1727196212100,0.89799,2620.1,2619.9,0.38171]
[1727196212301,3.07797679,2620.1,2619.9,0.38171]
[1727196212511,0.19098364,2620.0,2619.9,0.38171]
[1727196213109,0.19098364,2620.0,2619.8,0.38171]
[1727196213416,0.57267364,2620.0,2619.8,0.38171]
[1727196213615,0.19098364,2619.9,2619.8,0.38171]
[1727196214818,0.19098382,2619.9,2619.8,0.38171]
[1727196216423,0.19098382,2619.9,2619.8,0.38172]
[1727196217118,0.19098382,2619.9,2619.6,1.51174]
[1727196217119,0.38172,2619.8,2619.6,1.51174]
[1727196217420,0.57273193,2619.7,2619.6,1.13]
[1727196217614,0.19099193,2619.7,2619.6,1.51175]
[1727196218135,0.19099193,2619.7,2619.6,1.13]
[1727196218317,2.70079508,2619.8,2619.6,1.51175]
[1727196218618,0.19099193,2619.7,2619.6,11.14614]
[1727196218822,2.51460315,2619.9,2619.7,4.19934]
[1727196218823,1.49664616,2619.9,2619.7,4.19934]
[1727196219013,1.49664616,2619.9,2619.8,4.54383]
[1727196219217,1.49651223,2620.0,2619.9,1.33599]
[1727196219415,1.49651223,2620.0,2619.9,4.53549]
[1727196219619,1.49651223,2620.0,2619.9,17.56371679]
[1727196220013,1.49682295,2620.0,2619.9,17.56371679]
[1727196220218,1.49682295,2620.0,2619.9,18.51799679]
[1727196220818,1.98900315,2620.6,2620.5,0.38162]
[1727196221026,1.98900315,2620.6,2620.5,11.21542]
[1727196221216,1.98900315,2620.7,2620.6,0.38161]
[1727196221618,1.61490653,2620.8,2620.7,0.38159]
[1727196222925,0.5068,2620.9,2620.7,0.38159]
[1727196222926,0.5068,2620.9,2620.8,0.38158]
[1727196223120,2.49431176,2621.1,2620.8,7.0238]
[1727196223325,5.70211176,2621.2,2621.1,0.38153]
[1727196223513,4.82217531,2621.2,2620.8,7.4030743]
[1727196223821,1.61445763,2621.1,2620.9,0.38156]
[1727196224012,3.2078,2621.2,2621.0,0.38155]
[1727196224218,3.2078,2621.2,2620.9,4.1952743]
[1727196224416,1.99492485,2621.0,2620.9,4.5768243]
[1727196225317,1.99492485,2621.0,2620.9,4.1952743]
[1727196225518,0.38155,2621.1,2620.9,1.13]
[1727196226024,1.99526321,2621.0,2620.9,1.13]
[1727196226322,0.38155,2621.0,2620.9,1.13]
[1727196226525,0.38154,2621.1,2620.9,1.13]
[1727196226720,0.38154,2621.1,2620.8,3.2078]
[1727196226920,1.99416769,2620.9,2620.8,4.3368]
[1727196228920,3.12306769,2620.9,2620.8,4.3368]
[1727196229114,3.12306769,2620.9,2620.8,4.71838]
[1727196230030,3.12306769,2620.9,2620.8,1.51058]
[1727196230333,1.1289,2620.9,2620.8,1.51058]
[1727196230831,3.12306769,2620.9,2620.8,1.51058]
[1727196231125,2.58036769,2621.0,2620.9,0.38156]
[1727196231325,2.87581176,2621.4,2620.9,9.703]
[1727196231326,0.6188,2621.3,2620.9,9.703]
[1727196231533,1.99416769,2621.5,2621.3,0.95377]
[1727196231718,1.99416769,2621.5,2621.2,6.26932]
[1727196231719,2.61296769,2621.6,2621.5,0.38148]
[1727196231923,2.61296769,2621.6,2621.5,4.71828]
[1727196232123,0.6188,2621.6,2621.5,4.71828]
[1727196233633,0.6188,2621.6,2621.5,1.129]
[1727196234034,1.00026,2621.6,2621.5,1.129]
[1727196234229,1.00026,2621.6,2621.4,1.129]
[1727196234230,0.6188,2621.6,2621.4,1.129]
[1727196234432,1.00027,2621.6,2621.4,1.129]
[1727196235029,0.6188,2621.6,2621.5,0.38148]
[1727196235224,0.6188,2621.6,2621.5,4.65304713]
[1727196238136,1.99416769,2621.8,2621.7,0.38145]
[1727196238325,3.19426769,2621.9,2621.8,0.38143]
[1727196238523,3.56955944,2621.9,2621.8,0.38143]
[1727196238926,3.56955944,2621.9,2621.7,0.38144]
[1727196239348,1.2001,2621.9,2621.8,0.38143]
[1727196239836,0.6108,2621.9,2621.8,0.38143]
[1727196240234,0.97958,2622.2,2622.0,0.3814]
[1727196240235,2.96761944,2622.2,2622.0,0.3814]
[1727196240539,0.5982,2622.2,2621.8,5.8878]
[1727196240726,0.97958,2622.2,2622.0,0.38139]
[1727196243341,0.97958,2622.2,2621.9,0.38141]
[1727196243637,0.97958,2622.2,2622.0,2.68]
[1727196244029,0.38141,2622.0,2621.8,5.8878]
[1727196244246,0.5982,2622.2,2621.8,5.8878]
[1727196244635,0.38141,2622.0,2621.8,3.2078]
[1727196244928,0.38141,2622.0,2621.9,1.128]
[1727196245132,1.9868781,2622.0,2621.9,1.128]
[1727196245340,1.98697105,2622.0,2621.9,1.128]
[1727196249341,1.98697105,2622.0,2621.4,3.829]
[1727196249342,0.3815,2621.4,2621.2,0.38151]
[1727196249540,1.98476214,2621.4,2621.2,2.68]
[1727196249735,1.98476214,2621.4,2621.3,11.75691611]
[1727196250036,1.60575349,2621.6,2621.5,0.38148]
[1727196250037,1.98476214,2621.6,2621.5,0.38148]
[1727196250243,1.98476214,2621.7,2621.6,0.38146]
[1727196250539,1.98476214,2621.7,2621.6,7.47406]
[1727196250738,1.98476214,2621.7,2621.6,8.60206]
[1727196251252,0.38144,2621.8,2621.6,12.77687144]
[1727196251439,4.59777268,2622.0,2621.7,0.38145]
[1727196251749,0.38144,2621.8,2621.7,0.38144]
[1727196253151,2.11682,2622.0,2621.7,0.38144]
[1727196253444,0.38145,2621.7,2621.6,12.77686144]
[1727196253632,0.38144,2621.8,2621.6,12.39541144]
[1727196253843,0.38144,2621.8,2621.6,12.77686144]
[1727196254146,0.38144,2621.8,2621.7,0.38145]
[1727196254344,0.38143,2621.9,2621.7,0.38145]
[1727196254554,0.38143,2621.8,2621.7,0.38145]
[1727196254847,0.38142,2621.9,2621.7,0.38145]
[1727196255635,0.38143,2621.8,2621.7,0.38145]
[1727196256150,0.38143,2621.8,2621.6,12.39541144]
[1727196256539,0.38143,2621.8,2621.7,0.38144]
[1727196259054,2.36622435,2621.8,2621.7,0.38144]
[1727196260049,0.38143,2621.8,2621.7,0.38144]
[1727196260251,0.38145,2621.7,2621.6,12.77687144]
[1727196260451,2.3696134,2621.7,2621.6,12.77687144]
[1727196260952,1.9881634,2621.7,2621.6,12.77687144]
[1727196261543,2.3696134,2621.7,2621.6,12.77687144]
[1727196261752,1.9881634,2621.7,2621.6,12.77687144]
[1727196262253,0.38145,2621.7,2621.6,12.77687144]
[1727196262554,0.38142,2621.9,2621.8,0.38142]
[1727196263144,1.99166941,2621.9,2621.8,0.38142]
[1727196263853,1.99176222,2621.9,2621.8,0.38142]
[1727196264062,4.4727149,2621.9,2621.8,0.38142]
[1727196264249,4.0912949,2621.9,2621.6,12.39541144]
[1727196264443,0.38145,2621.7,2621.6,7.39726]
[1727196265047,4.4727449,2621.7,2621.6,7.0158]
[1727196265251,4.4727449,2621.7,2621.6,3.808]
[1727196266350,4.4727449,2621.7,2621.6,4.18846]
[1727196267059,0.38145,2621.7,2621.6,4.18846]
[1727196267246,0.38145,2621.7,2621.6,3.807]
[1727196269255,0.38145,2621.7,2621.6,4.18846]
[1727196269451,2.37518034,2621.8,2621.7,0.38145]
[1727196269750,2.37518034,2621.8,2621.6,3.807]
[1727196269751,2.37518034,2621.8,2621.6,4.18845]
[1727196269949,0.38144,2621.8,2621.6,7.39625]
[1727196270151,2.37518034,2621.8,2621.6,7.39625]
[1727196270353,2.37518034,2621.8,2621.6,3.2078]
[1727196270354,0.38145,2621.7,2621.6,3.2078]
[1727196270663,0.38147,2621.6,2621.5,1.127]
[1727196270951,0.38147,2621.6,2621.5,5.09926113]
[1727196271742,0.38147,2621.6,2621.5,5.48074113]
[1727196272347,2.97590034,2621.7,2621.5,5.48074113]
[1727196272655,2.97590034,2621.7,2621.6,2.68]
[1727196272858,0.98216,2621.7,2621.6,2.68]
[1727196273053,2.97590034,2621.7,2621.6,2.68]
[1727196275149,0.98216,2621.7,2621.6,2.68]
[1727196276144,2.59955857,2621.7,2621.6,2.68]
[1727196276548,0.98216,2621.7,2621.6,2.68]
[1727196277151,2.60048469,2621.7,2621.6,2.68]
[1727196277656,2.60056472,2621.7,2621.6,2.68]
[1727196279559,5.0815174,2621.7,2621.6,2.68]
[1727196279947,2.60056472,2621.7,2621.6,2.68]
[1727196280555,5.0815174,2621.7,2621.6,2.68]
[1727196281363,5.0815174,2621.7,2621.6,3.06146]
[1727196281560,4.7000574,2621.7,2621.6,3.06146]
[1727196281859,5.0815074,2621.7,2621.6,3.06146]
[1727196282059,4.7000574,2621.7,2621.6,3.06146]
[1727196282255,2.21910472,2621.7,2621.6,0.38146]
[1727196282461,2.21910472,2621.7,2621.6,4.4478]
[1727196282462,1.61907947,2621.7,2621.6,4.4478]
[1727196282658,1.61907947,2621.7,2621.6,4.82926]
[1727196284368,1.61907947,2621.7,2621.6,14.3037145]
[1727196285263,0.5962,2622.2,2622.1,0.38139]
[1727196285459,4.5826332,2622.4,2622.2,0.38137]
[1727196285668,1.58595,2622.4,2622.2,1.50737]
[1727196286464,1.58595,2622.4,2622.3,2.68]
[1727196286671,1.2046,2622.4,2622.3,2.68]
[1727196288066,1.2046,2622.4,2622.3,3.06136]
[1727196288272,1.2046,2622.4,2622.3,2.68]
[1727196294687,1.58594,2622.4,2622.3,2.68]
[1727196295272,3.18902954,2622.4,2622.3,2.68]
[1727196295583,7.57465954,2622.4,2621.9,2.68]
[1727196295785,3.45143002,2622.1,2621.7,3.2078]
[1727196296088,5.06611956,2622.0,2621.7,4.71524]
[1727196296276,2.83483446,2621.9,2621.7,4.71524]
[1727196296581,1.60313446,2621.8,2621.7,4.71524]
[1727196296783,1.60313446,2621.8,2621.7,7.39524]
[1727196296982,1.60313446,2621.8,2621.7,15.33559791]
[1727196297171,2.49792002,2621.9,2621.8,0.38143]
[1727196297371,4.06448619,2622.0,2621.8,0.6232]
[1727196297572,4.16779001,2621.9,2621.8,4.97112677]
[1727196298986,4.16779001,2621.9,2621.8,7.65112677]
[1727196299187,4.54921001,2621.9,2621.8,7.77249677]
[1727196299383,4.54921001,2621.9,2621.8,3.806]
[1727196300583,4.54934906,2621.9,2621.8,3.806]
[1727196300782,4.16792906,2621.9,2621.8,3.806]
[1727196300987,8.03013525,2621.9,2621.8,3.806]
[1727196301395,4.54934906,2621.9,2621.8,1.126]
[1727196301579,4.54934906,2621.9,2621.7,5.8878]
[1727196301580,0.38143,2621.8,2621.7,3.2078]
[1727196301782,0.38143,2621.8,2621.4,2.68]
[1727196301783,0.38147,2621.6,2621.4,2.68]
[1727196301992,0.38147,2621.6,2621.4,4.18749]
[1727196301993,0.47713521,2621.5,2621.4,4.18749]
[1727196302383,2.55023076,2621.6,2621.5,4.46374599]
[1727196302582,0.6317,2621.7,2621.6,0.38146]
[1727196302783,3.18175039,2621.7,2621.6,3.06146]
[1727196302991,2.55005039,2621.7,2621.6,10.94735336]
[1727196303180,5.54785534,2621.7,2621.6,12.15215336]
[1727196303583,0.5837,2622.0,2621.7,0.38145]
[1727196303584,2.99780495,2621.8,2621.7,0.38145]
[1727196303781,2.54978711,2621.8,2621.7,3.06145]
[1727196303989,5.54757588,2621.8,2621.7,7.06343854]
[1727196304195,2.99780495,2621.9,2621.8,0.38143]
[1727196304384,2.99780495,2621.9,2621.8,6.26923]
[1727196304385,1.99829071,2621.9,2621.8,6.26923]
[1727196306093,1.4986852,2621.9,2621.8,21.15228133]
[1727196306593,1.49851366,2622.0,2621.9,0.38142]
[1727196306798,1.99829071,2622.2,2622.1,0.38139]
[1727196307094,1.99829071,2622.2,2622.1,11.43000354]
[1727196307799,2.49786339,2622.4,2622.3,0.38136]
[1727196309698,1.7777,2622.5,2622.4,0.38134]
[1727196309699,4.27556339,2622.5,2622.4,0.38134]
[1727196310086,1.7777,2622.5,2622.3,6.83393753]
[1727196310293,4.65690339,2622.5,2622.3,7.21529753]
[1727196310590,0.38134,2622.4,2622.3,6.83393753]
[1727196310796,4.65690339,2622.5,2622.3,6.83393753]
[1727196311389,2.49786339,2622.4,2622.3,7.21529753]
[1727196311990,4.09072999,2622.4,2622.3,7.21529753]
[1727196312295,4.14145196,2622.4,2622.3,7.21529753]
[1727196312689,4.14145196,2622.4,2622.3,6.83393753]
[1727196313090,2.92992536,2622.4,2622.3,6.83393753]
[1727196313405,4.14145453,2622.4,2622.3,6.83393753]
[1727196313696,4.14145453,2622.4,2622.3,5.27993753]
[1727196313697,4.52279453,2622.4,2622.3,5.27993753]
[1727196313994,0.38137,2622.2,2622.0,1.126]
[1727196314200,8.11666122,2622.1,2622.0,1.126]
[1727196314401,7.73527122,2622.1,2622.0,1.126]
[1727196314588,8.61781658,2622.1,2622.0,1.126]
[1727196314898,4.73874891,2622.1,2622.0,1.126]
[1727196315091,5.12013891,2622.1,2622.0,1.126]
[1727196315286,4.73874891,2622.1,2622.0,1.126]
[1727196315690,4.73874891,2622.1,2622.0,1.5074]
[1727196315901,4.14174891,2622.1,2622.0,5.55049323]
[1727196316198,7.13859387,2622.1,2622.0,9.95389323]
[1727196316901,5.5457247,2622.1,2622.0,9.95389323]
[1727196317095,7.13859387,2622.1,2622.0,9.95389323]
[1727196317690,2.99684496,2622.1,2622.0,9.95389323]
[1727196318093,1.59336971,2622.1,2622.0,10.90740323]
[1727196318399,1.59336971,2622.1,2622.0,17.86091323]
[1727196318695,2.49721375,2622.1,2622.0,17.86091323]
[1727196318996,2.49723328,2622.1,2622.0,16.90740323]
[1727196319193,4.09060299,2622.1,2622.0,16.90740323]
[1727196319395,1.49827307,2622.2,2622.1,1.33487]
[1727196319598,1.49827307,2622.2,2622.1,7.80037]
[1727196319803,1.49827307,2622.2,2622.1,15.98111637]
[1727196320094,1.99769743,2622.3,2622.2,0.38137]
[1727196320301,1.99769743,2622.3,2622.2,3.06137]
[1727196320503,1.99769743,2622.3,2622.2,7.03164548]
[1727196320893,4.0902875,2622.4,2622.1,5.8878]
[1727196321199,0.639,2622.2,2622.1,3.06139]
[1727196321396,2.23205422,2622.2,2622.1,3.06139]
[1727196321793,0.639,2622.2,2622.1,3.06139]
[1727196322104,2.87857328,2622.4,2622.3,0.38136]
[1727196322296,5.27588229,2622.4,2622.3,2.68]
[1727196322499,5.65722229,2622.4,2622.3,4.15039728]
[1727196322689,0.38136,2622.3,2622.2,2.68]
[1727196322895,4.47210811,2622.3,2622.2,3.805]
[1727196323291,4.09074811,2622.3,2622.2,3.805]
[1727196323499,4.47210811,2622.3,2622.2,7.95539728]
[1727196323999,4.47210811,2622.3,2622.2,3.805]
[1727196324310,1.97450901,2622.3,2622.2,1.125]
[1727196324495,0.38138,2622.2,2622.0,3.5892]
[1727196324803,0.98508,2622.2,2622.1,0.65685099]
[1727196325003,3.10183523,2622.2,2622.1,0.65685099]
[1727196325201,3.10183523,2622.2,2622.1,7.95796597]
[1727196325400,3.68363523,2622.4,2622.1,11.98867597]
[1727196325605,3.68363523,2622.4,2622.3,2.68]
[1727196325606,3.68364474,2622.4,2622.3,2.68]
[1727196325806,3.68364474,2622.4,2622.3,3.06136]
[1727196326105,0.80786632,2622.8,2622.7,0.95326]
[1727196326310,2.99684496,2623.6,2622.9,1.33443]
[1727196326500,3.58892,2624.0,2622.8,1.253]
[1727196326501,0.089,2624.2,2623.5,8.5678]
[1727196326703,0.089,2624.6,2624.1,6.26889]
[1727196327011,3.9115,2624.8,2623.6,2.11807993]
[1727196327012,0.6007,2624.8,2624.5,2.68]
[1727196327212,1.05829368,2625.5,2624.5,2.68]
[1727196327213,3.2968,2625.6,2624.7,5.8878]
[1727196327508,0.38095,2625.1,2624.8,4.00384087]
[1727196328012,0.38094,2625.2,2624.8,4.00384087]
[1727196328195,4.4095,2625.3,2624.8,4.00384087]
[1727196328196,0.6007,2625.3,2625.0,2.68]
[1727196328601,7.99903,2625.3,2625.0,2.68]
[1727196328804,0.6205,2625.2,2625.0,2.68]
[1727196329315,4.81104,2625.2,2625.0,2.68]
[1727196329503,0.38096,2625.1,2624.8,2.68]
[1727196329702,1.00144,2625.2,2624.8,2.68]
[1727196330210,0.38095,2625.1,2624.8,2.68]
[1727196330600,0.38097,2625.0,2624.8,2.68]
[1727196330804,0.38095,2625.1,2624.8,2.68]
[1727196331208,0.6205,2625.2,2625.0,2.68]
[1727196331409,0.6007,2625.3,2625.0,5.8878]
[1727196331605,0.6007,2625.3,2625.2,2.68]